bitfinex/quotes_BTCUSD_20220204
["timestamp","ask_amount","ask_price","bid_price","bid_amount"]
[1643981931702,0.15813091,37605.0,37593.0,0.39787966]
[1643981931899,0.09128009,37603.0,37599.0,0.1]
[1643981932100,0.00529288,37607.0,37595.0,0.132941]
[1643981932101,0.10109684,37602.0,37595.0,0.132941]
[1643981932403,0.09626331,37600.0,37597.0,0.00091825]
[1643981932602,0.7805,37609.0,37597.0,0.00091825]
[1643981932603,0.066454,37608.0,37599.0,0.19559475]
[1643981932801,0.09445536,37607.0,37603.0,0.132917]
[1643981933001,0.066454,37608.0,37603.0,0.132917]
[1643981933002,0.09401831,37606.0,37604.0,0.0489]
[1643981933204,0.07349971,37608.0,37604.0,0.0489]
[1643981933401,0.09187956,37607.0,37604.0,0.0489]
[1643981933803,0.15833408,37607.0,37604.0,0.115359]
[1643981934001,0.10332537,37606.0,37604.0,0.115359]
[1643981934202,0.10332537,37606.0,37604.0,0.21293108]
[1643981934459,0.00656947,37621.0,37606.0,0.26574]
[1643981934656,0.10214,37614.0,37613.0,0.09990485]
[1643981934856,0.13286029,37622.0,37614.0,0.27319755]
[1643981934857,0.00035172,37617.0,37614.0,0.27319755]
[1643981935054,0.00035172,37617.0,37616.0,0.04990485]
[1643981935255,0.06642776,37620.0,37616.0,0.2245417]
[1643981935454,0.021448,37618.0,37616.0,0.14880485]
[1643981935652,0.021448,37618.0,37616.0,0.09880485]
[1643981935857,0.021448,37618.0,37616.0,0.28336169]
[1643981936152,0.021448,37618.0,37616.0,0.33326654]
[1643981936353,0.021448,37618.0,37616.0,0.43326654]
[1643981936755,0.021448,37618.0,37616.0,0.38336169]
[1643981937155,0.016448,37618.0,37616.0,0.38336169]
[1643981937352,0.016448,37618.0,37616.0,0.1489]
[1643981937656,0.016448,37618.0,37617.0,0.19549961]
[1643981937855,0.016448,37618.0,37617.0,0.24439961]
[1643981938507,0.06642776,37620.0,37617.0,0.56425128]
[1643981938705,0.06642776,37620.0,37619.0,0.04990485]
[1643981938903,0.06642776,37620.0,37619.0,0.3612954]
[1643981939104,0.06642776,37620.0,37619.0,0.0489]
[1643981939307,0.07332777,37620.0,37619.0,0.0489]
[1643981939506,0.06642776,37620.0,37619.0,0.0489]
[1643981939905,0.06642776,37620.0,37619.0,0.30742971]
[1643981940105,0.06642776,37620.0,37619.0,0.35733456]
[1643981940509,0.06642776,37620.0,37619.0,0.45733456]
[1643981940805,0.06642776,37620.0,37619.0,0.1489]
[1643981941605,0.04642776,37620.0,37619.0,0.1489]
[1643981942051,0.05,37622.0,37620.0,0.27742109]
[1643981942251,0.05,37622.0,37621.0,0.0489]
[1643981942853,0.26574478,37623.0,37621.0,0.16522785]
[1643981943052,0.26574478,37623.0,37621.0,0.115323]
[1643981943455,0.066432,37623.0,37621.0,0.16522785]
[1643981943657,0.066432,37623.0,37621.0,0.115323]
[1643981944055,0.116432,37623.0,37621.0,0.115323]
[1643981944255,0.166432,37623.0,37621.0,0.115323]
[1643981944457,0.166432,37623.0,37621.0,0.16522785]
[1643981944657,0.116432,37623.0,37621.0,0.115323]
[1643981944857,0.166432,37623.0,37621.0,0.115323]
[1643981945056,0.09436392,37622.0,37621.0,0.115323]
[1643981945256,0.09436392,37622.0,37621.0,0.16522785]
[1643981945257,0.14436392,37622.0,37621.0,0.16522785]
[1643981945457,0.05,37622.0,37621.0,0.115323]
[1643981945704,0.1,37622.0,37621.0,0.115323]
[1643981945905,0.05,37622.0,37621.0,0.115323]
[1643981946709,0.05,37622.0,37621.0,0.42114612]
[1643981946906,0.05,37622.0,37621.0,0.26522785]
[1643981947307,0.05,37622.0,37621.0,0.215323]
[1643981947508,0.05,37622.0,37621.0,0.26522785]
[1643981947909,2.16452438,37622.0,37621.0,0.115323]
[1643981948111,1.9,37621.0,37617.0,0.132852]
[1643981948310,1.9,37621.0,37612.0,0.04976355]
[1643981948311,1.9,37618.0,37612.0,0.00086355]
[1643981948511,0.26452438,37617.0,37612.0,0.00086355]
[1643981948710,0.05,37617.0,37612.0,0.00086355]
[1643981948913,0.05,37617.0,37605.0,0.265732]
[1643981948914,0.05,37617.0,37611.0,0.46330713]
[1643981949109,0.05,37617.0,37612.0,0.00086345]
[1643981949955,0.132886,37616.0,37612.0,0.00086345]
[1643981950157,0.132886,37616.0,37611.0,0.31391998]
[1643981950360,0.132886,37616.0,37612.0,0.00086848]
[1643981950558,0.00035171,37617.0,37615.0,0.066436]
[1643981950757,0.13323771,37618.0,37615.0,0.066436]
[1643981950961,0.132886,37618.0,37615.0,0.066436]
[1643981951160,0.132886,37618.0,37617.0,0.22958163]
[1643981951562,0.182886,37618.0,37617.0,0.22958163]
[1643981951759,0.182886,37618.0,37615.0,0.066436]
[1643981952159,0.232886,37618.0,37612.0,0.00086851]
[1643981952659,0.066454,37615.0,37612.0,0.00086849]
[1643981952858,0.132907,37615.0,37612.0,0.00086849]
[1643981953704,0.132907,37615.0,37607.0,0.38780044]
[1643981953905,0.132907,37615.0,37612.0,0.00086786]
[1643981954113,0.066453,37615.0,37612.0,0.00086786]
[1643981954707,0.066453,37615.0,37612.0,0.13375786]
[1643981954907,0.066453,37615.0,37612.0,0.13289]
[1643981955108,0.066453,37615.0,37612.0,0.00086786]
[1643981955109,2.1490042,37613.0,37612.0,0.00086786]
[1643981956111,0.05,37612.0,37604.0,0.30450525]
[1643981956311,0.066463,37611.0,37604.0,0.3544101]
[1643981956511,0.132929,37611.0,37610.0,0.26279265]
[1643981956717,0.25637077,37623.0,37608.0,0.31021601]
[1643981956718,0.2496,37623.0,37608.0,0.31021601]
[1643981956954,0.00035171,37620.0,37614.0,0.04990485]
[1643981957154,0.00035171,37622.0,37614.0,0.04990485]
[1643981957353,0.29818805,37620.0,37612.0,0.04990485]
[1643981957552,0.06644,37618.0,37614.0,0.132873]
[1643981957755,0.06644,37618.0,37612.0,0.000868]
[1643981957951,0.06679171,37618.0,37612.0,0.000868]
[1643981958150,0.06644,37618.0,37613.0,0.066447]
[1643981958953,0.00035171,37619.0,37615.0,0.04990485]
[1643981959155,0.00035171,37620.0,37617.0,0.04990485]
[1643981959355,0.00035171,37620.0,37614.0,0.32471571]
[1643981959356,0.00035171,37621.0,37618.0,0.066429]
[1643981959551,0.00035171,37623.0,37618.0,0.066429]
[1643981959752,0.42035171,37624.0,37618.0,0.066429]
[1643981959952,0.00035171,37623.0,37618.0,0.066429]
[1643981960152,0.42086775,37624.0,37618.0,0.066429]
[1643981960451,0.05035171,37623.0,37618.0,0.066429]
[1643981960702,0.05,37623.0,37619.0,0.0489]
[1643981960905,0.05035171,37623.0,37619.0,0.0489]
[1643981961905,0.10035171,37623.0,37619.0,0.0489]
[1643981962304,0.132895,37622.0,37619.0,0.0489]
[1643981962603,0.182895,37622.0,37617.0,0.132858]
[1643981962803,0.18324671,37622.0,37617.0,0.132858]
[1643981963003,1.44498067,37618.0,37617.0,0.132858]
[1643981963306,1.54498067,37618.0,37617.0,0.132858]
[1643981964656,1.54498067,37618.0,37613.0,0.232895]
[1643981964657,1.92567939,37618.0,37613.0,0.232895]
[1643981964855,0.33534121,37616.0,37613.0,0.132895]
[1643981965055,0.33534121,37616.0,37612.0,0.00086796]
[1643981965256,0.182929,37616.0,37612.0,0.00086796]
[1643981965554,0.05,37616.0,37612.0,0.00086796]
[1643981965755,0.066459,37614.0,37609.0,0.1329]
[1643981965955,0.066459,37614.0,37612.0,0.00086791]
[1643981966956,0.066459,37614.0,37610.0,0.23915817]
[1643981967258,0.066459,37614.0,37611.0,0.00086792]
[1643981968105,0.066459,37614.0,37606.0,0.54713073]
[1643981968106,0.066459,37614.0,37609.0,0.066459]
[1643981968307,0.11645504,37616.0,37611.0,0.00086796]
[1643981968506,0.05,37617.0,37611.0,0.13376796]
[1643981968706,0.1,37617.0,37611.0,0.13376796]
[1643981968904,0.05,37617.0,37611.0,0.13376796]
[1643981969406,0.05,37617.0,37611.0,0.1329]
[1643981969605,0.04991043,37617.0,37612.0,0.00035439]
[1643981970105,0.09991043,37617.0,37612.0,0.00035439]
[1643981970307,0.09991043,37617.0,37612.0,0.28174975]
[1643981970505,0.09991043,37617.0,37612.0,0.28139536]
[1643981970706,0.05,37617.0,37612.0,0.00035439]
[1643981970906,1.50258329,37618.0,37612.0,0.00035439]
[1643981971108,0.11645518,37617.0,37612.0,0.00035439]
[1643981971307,0.06645518,37617.0,37612.0,0.00035439]
[1643981971859,0.31823225,37617.0,37612.0,0.0009197]
[1643981972054,1.32783937,37613.0,37612.0,0.0009197]
[1643981972457,1.25,37613.0,37612.0,0.0009197]
[1643981972654,1.3,37613.0,37612.0,0.0009197]
[1643981972855,1.3,37613.0,37610.0,0.1329]
[1643981973055,1.3,37613.0,37611.0,0.00086417]
[1643981973756,1.25,37613.0,37611.0,0.00086417]
[1643981974155,1.25,37613.0,37609.0,0.04990485]
[1643981974356,1.25,37613.0,37610.0,0.00086418]
[1643981974754,1.3,37613.0,37610.0,0.00086418]
[1643981975155,1.3,37613.0,37610.0,0.13376518]
[1643981975354,1.3,37613.0,37606.0,0.04990485]
[1643981975608,1.3,37613.0,37610.0,0.00080585]
[1643981975808,1.25,37613.0,37610.0,0.00080585]
[1643981976211,0.09344769,37612.0,37610.0,0.00080585]
[1643981976409,1.25,37613.0,37610.0,0.0507107]
[1643981976609,1.25,37613.0,37609.0,0.132905]
[1643981976811,0.10440072,37610.0,37609.0,0.13371085]
[1643981977010,1.25,37613.0,37609.0,0.1836157]
[1643981977210,1.25,37613.0,37609.0,0.13371085]
[1643981977211,0.28521743,37612.0,37609.0,0.13371085]
[1643981977411,1.9,37609.0,37594.0,0.267809]
[1643981977618,1.36692752,37608.0,37594.0,0.267809]
[1643981977812,1.9,37609.0,37594.0,0.267809]
[1643981977813,0.06647902,37603.0,37594.0,0.002]
[1643981978012,0.09916357,37602.0,37594.0,0.068484]
[1643981978211,0.09956499,37600.0,37597.0,0.26102406]
[1643981978414,0.22210013,37602.0,37592.0,0.002]
[1643981978415,1.8,37598.0,37592.0,0.002]
[1643981978613,1.916488,37598.0,37592.0,0.002]
[1643981978810,0.09734325,37596.0,37592.0,0.002]
[1643981979012,1.866488,37598.0,37592.0,0.002]
[1643981979213,0.06647933,37602.0,37593.0,0.06683661]
[1643981979469,0.09539997,37607.0,37602.0,0.19083554]
[1643981979670,0.09539997,37607.0,37604.0,0.04990485]
[1643981979871,0.066461,37611.0,37604.0,0.04990485]
[1643981980272,0.09716689,37608.0,37602.0,0.24074039]
[1643981980470,0.09716689,37608.0,37605.0,0.0003535]
[1643981980879,0.09716689,37608.0,37606.0,0.09880485]
[1643981981072,0.2376,37622.0,37613.0,0.19324224]
[1643981981073,0.846053,37616.0,37613.0,0.19324224]
[1643981981271,0.066453,37616.0,37613.0,0.18824224]
[1643981981471,0.06737148,37616.0,37613.0,0.18824224]
[1643981982068,0.09658492,37614.0,37613.0,0.18824224]
[1643981982270,0.067371,37616.0,37613.0,0.24969524]
[1643981982471,0.3741695,37622.0,37614.0,0.26145397]
[1643981982472,0.09530281,37618.0,37614.0,0.26145397]
[1643981982670,0.00086295,37616.0,37613.0,0.24969524]
[1643981982872,0.09610548,37616.0,37613.0,0.24969524]
[1643981983103,0.09932964,37614.0,37613.0,0.24969524]
[1643981983305,0.05086295,37616.0,37613.0,0.24969524]
[1643981983505,0.05086295,37616.0,37614.0,0.30289638]
[1643981983708,0.0934164,37615.0,37614.0,0.30289638]
[1643981983908,0.00086295,37617.0,37614.0,0.30289638]
[1643981984106,0.00086295,37617.0,37613.0,0.24969524]
[1643981984309,0.1329237,37616.0,37611.0,0.1]
[1643981984509,0.1329237,37616.0,37607.0,0.00086317]
[1643981984711,0.13855911,37616.0,37607.0,0.00086317]
[1643981984913,0.09483517,37614.0,37608.0,0.09880485]
[1643981985109,0.00086295,37615.0,37610.0,0.29560148]
[1643981985311,0.00086295,37615.0,37612.0,0.20806083]
[1643981985513,0.09413093,37621.0,37612.0,0.20806083]
[1643981985709,0.00035218,37620.0,37612.0,0.20806083]
[1643981986010,0.10372287,37615.0,37612.0,0.20806083]
[1643981986310,0.00035218,37622.0,37612.0,0.27451283]
[1643981986311,0.10279002,37614.0,37612.0,0.27451283]
[1643981986509,0.066447,37622.0,37612.0,0.27451283]
[1643981986510,0.00035218,37621.0,37615.0,0.07686991]
[1643981986711,0.10399933,37622.0,37612.0,0.1]
[1643981986959,0.00035218,37621.0,37612.0,0.1]
[1643981987159,0.15399933,37622.0,37612.0,0.1]
[1643981987361,0.09681462,37621.0,37612.0,0.1]
[1643981987559,0.05,37620.0,37615.0,0.00087322]
[1643981987958,0.10269546,37618.0,37615.0,0.08987197]
[1643981988164,0.10269546,37618.0,37615.0,0.00087322]
[1643981988559,0.10269546,37618.0,37614.0,0.066448]
[1643981988759,0.10269546,37618.0,37615.0,0.00087322]
[1643981989763,0.11645253,37620.0,37608.0,0.18281185]
[1643981989764,0.10233592,37616.0,37608.0,0.18281185]
[1643981989965,0.05,37617.0,37608.0,0.18281185]
[1643981989966,0.05,37617.0,37615.0,0.00087322]
[1643981990162,0.09383635,37616.0,37615.0,0.00087322]
[1643981990363,0.05,37616.0,37615.0,0.00087322]
[1643981990609,0.10376729,37616.0,37615.0,0.00087322]
[1643981990814,0.18291698,37616.0,37615.0,0.00087322]
[1643981991010,0.09840322,37615.0,37614.0,0.23527951]
[1643981991212,0.13292014,37615.0,37614.0,0.00086952]
[1643981992216,0.13292014,37615.0,37609.0,0.24005027]
[1643981992417,0.13292014,37615.0,37613.0,0.00086953]
[1643981993420,0.13292014,37615.0,37609.0,0.24005027]
[1643981993619,0.13947489,37615.0,37612.0,0.00086954]
[1643981993819,0.18932956,37615.0,37612.0,0.00086954]
[1643981994219,0.18292014,37615.0,37612.0,0.00086954]
[1643981994462,0.18292014,37615.0,37608.0,0.2519863]
[1643981994664,0.066467,37614.0,37609.0,0.09562344]
[1643981994860,0.066467,37614.0,37612.0,0.00086979]
[1643981995661,0.13292638,37614.0,37609.0,0.09562344]
[1643981995861,0.13292638,37614.0,37611.0,0.0008698]
[1643981996263,0.11645938,37614.0,37611.0,0.0008698]
[1643981996468,0.05,37614.0,37611.0,0.0008698]
[1643981996663,0.05,37615.0,37611.0,0.0008698]
[1643981996863,0.05,37620.0,37611.0,0.27974455]
[1643981997064,0.05,37620.0,37611.0,0.28061435]
[1643981997262,0.06644736,37617.0,37612.0,0.22087966]
[1643981997464,0.1,37620.0,37613.0,0.066447]
[1643981997663,0.00035218,37621.0,37613.0,0.3267861]
[1643981997868,0.00122173,37622.0,37617.0,0.04990485]
[1643981998109,0.7947,37625.0,37617.0,0.04990485]
[1643981998110,0.00035218,37621.0,37617.0,0.04990485]
[1643981998309,0.00086962,37622.0,37618.0,0.08846808]
[1643981998508,0.00086962,37622.0,37618.0,0.13736808]
[1643981998712,0.0012218,37622.0,37621.0,0.22552736]
[1643981998909,0.00086962,37622.0,37621.0,0.27442736]
[1643981999308,0.1328772,37627.0,37622.0,0.066436]
[1643981999908,0.1828772,37627.0,37622.0,0.066436]
[1643982000713,0.54969032,37627.0,37622.0,0.066436]
[1643982000910,0.06645,37625.0,37618.0,0.00035924]
[1643982001316,0.06680218,37625.0,37618.0,0.00035924]
[1643982001508,0.0664528,37622.0,37618.0,0.00035924]
[1643982001711,0.0664528,37622.0,37612.0,0.0489]
[1643982001712,0.07480124,37620.0,37612.0,0.54621412]
[1643982001961,0.10107938,37619.0,37618.0,0.0009215]
[1643982002163,0.16753238,37619.0,37618.0,0.0009215]
[1643982002360,0.09859158,37618.0,37611.0,0.1295165]
[1643982002559,0.09666541,37618.0,37611.0,0.1295165]
[1643982002758,0.05,37617.0,37611.0,0.1295165]
[1643982002957,0.09613332,37616.0,37611.0,0.1295165]
[1643982003158,0.1053593,37615.0,37613.0,0.04990485]
[1643982003359,0.09731041,37614.0,37613.0,0.04990485]
[1643982003560,0.066444,37623.0,37613.0,0.04990485]
[1643982003758,0.10274588,37622.0,37615.0,0.04990485]
[1643982003964,0.1023937,37622.0,37618.0,0.04990485]
[1643982004161,0.00035218,37622.0,37621.0,0.04990485]
[1643982004358,0.00035218,37624.0,37622.0,0.066436]
[1643982004569,0.00035218,37627.0,37623.0,0.41162473]
[1643982004765,0.5285,37637.0,37634.0,0.14559476]
[1643982004963,0.5285,37637.0,37636.0,0.04990485]
[1643982005159,0.5285,37637.0,37636.0,0.24439961]
[1643982005836,0.5285,37637.0,37636.0,0.09880485]
[1643982006333,0.5285,37637.0,37636.0,0.07734819]
[1643982006534,0.01,37639.0,37636.0,0.2728478]
[1643982006733,0.01,37639.0,37638.0,0.04990485]
[1643982006934,0.00988443,37639.0,37638.0,0.09880485]
[1643982007131,0.00988443,37639.0,37638.0,0.0489]
[1643982007434,0.00988443,37639.0,37638.0,0.18489089]
[1643982007631,0.00988443,37639.0,37638.0,0.23489089]
[1643982007831,0.00988443,37639.0,37638.0,0.18498604]
[1643982008031,0.00988443,37639.0,37638.0,0.0489]
[1643982008439,1.65988443,37639.0,37638.0,0.0489]
[1643982009135,1.65988443,37639.0,37635.0,0.066413]
[1643982009136,0.33759027,37637.0,37635.0,0.066413]
[1643982009374,0.22380772,37636.0,37629.0,0.265709]
[1643982009666,1.6,37630.0,37623.0,0.34108976]
[1643982009862,0.25906344,37629.0,37624.0,0.04990485]
[1643982010063,1.6,37630.0,37624.0,0.27433411]
[1643982010261,1.6,37630.0,37626.0,0.132865]
[1643982010464,1.9,37638.0,37626.0,0.132865]
[1643982010465,0.00092065,37628.0,37626.0,0.066432]
[1643982010663,0.00092065,37628.0,37627.0,0.14880485]
[1643982010861,0.00092065,37628.0,37627.0,0.48989461]
[1643982011064,0.00092065,37628.0,37627.0,0.09880485]
[1643982011265,0.00092065,37628.0,37627.0,0.04990485]
[1643982011566,0.37499043,37633.0,37626.0,0.199273]
[1643982011865,0.00092064,37629.0,37626.0,0.199273]
[1643982012061,0.00092064,37629.0,37627.0,0.25973268]
[1643982012563,0.066425,37641.0,37627.0,0.25973268]
[1643982012564,0.26025644,37640.0,37628.0,0.04990485]
[1643982012765,0.00368201,37636.0,37634.0,0.066415]
[1643982012964,0.00368201,37636.0,37635.0,0.10163137]
[1643982013409,0.70368201,37636.0,37635.0,0.10163137]
[1643982013608,0.70368201,37636.0,37635.0,0.15153622]
[1643982013809,0.7,37636.0,37635.0,0.15153622]
[1643982014014,0.00092057,37637.0,37635.0,0.26794522]
[1643982014213,0.00092057,37637.0,37636.0,0.24439961]
[1643982015011,0.2476,37648.0,37636.0,0.516333]
[1643982015212,0.2476,37648.0,37638.0,0.04990485]
[1643982015213,0.00368168,37644.0,37638.0,0.04990485]
[1643982015413,0.35335451,37644.0,37638.0,0.0489]
[1643982015613,0.10478844,37642.0,37638.0,0.0489]
[1643982015814,0.09251216,37641.0,37638.0,0.09880485]
[1643982016013,0.11203169,37639.0,37638.0,0.09880485]
[1643982016212,0.11203169,37639.0,37638.0,0.23161585]
[1643982016213,0.00988443,37639.0,37638.0,0.23161585]
[1643982016414,0.90988443,37639.0,37638.0,0.23161585]
[1643982016713,0.90988443,37639.0,37638.0,0.181711]
[1643982016962,0.90988443,37639.0,37638.0,0.16501149]
[1643982017359,1.20988443,37639.0,37638.0,0.16501149]
[1643982017757,0.00988443,37639.0,37638.0,0.16501149]
[1643982018059,0.00988443,37639.0,37638.0,0.21491634]
[1643982018457,0.00988443,37639.0,37638.0,0.16501149]
[1643982018658,0.00988443,37639.0,37638.0,0.21491634]
[1643982018858,0.00988443,37639.0,37638.0,0.16501149]
[1643982019460,0.75988443,37639.0,37638.0,0.16501149]
[1643982020708,0.00988443,37639.0,37638.0,0.16501149]
[1643982021310,0.55988443,37639.0,37638.0,0.16501149]
[1643982021513,0.00988443,37639.0,37638.0,0.21491634]
[1643982021715,0.00092054,37640.0,37639.0,0.35]
[1643982021917,0.00035199,37645.0,37644.0,0.14559476]
[1643982022117,0.01,37649.0,37644.0,0.14559476]
[1643982022118,0.00035199,37648.0,37644.0,0.24439961]
[1643982022312,0.01035199,37649.0,37647.0,0.04990485]
[1643982022512,1.10035199,37648.0,37647.0,0.34400748]
[1643982022811,1.10035199,37648.0,37647.0,0.60929548]
[1643982022812,1.1,37648.0,37647.0,0.60929548]
[1643982023411,1.1,37648.0,37647.0,0.74207148]
[1643982024210,0.01,37649.0,37647.0,0.74207148]
[1643982024660,0.5285,37650.0,37647.0,0.74207148]
[1643982024858,0.5785,37650.0,37647.0,0.74207148]
[1643982025262,0.00035199,37654.0,37649.0,0.04990485]
[1643982025461,0.00035199,37654.0,37650.0,0.0489]
[1643982025661,0.05,37655.0,37650.0,0.115284]
[1643982025861,0.00035199,37654.0,37650.0,0.115284]
[1643982026062,0.0009211,37654.0,37653.0,0.24297689]
[1643982026260,0.8009211,37654.0,37653.0,0.24297689]
[1643982026659,0.8509211,37654.0,37651.0,0.209621]
[1643982026861,0.09471658,37653.0,37652.0,0.066384]
[1643982027265,0.13717658,37653.0,37652.0,0.066384]
[1643982027462,0.04246,37653.0,37652.0,0.066384]
[1643982027865,0.8009211,37654.0,37652.0,0.066384]
[1643982028112,0.8,37654.0,37650.0,0.13277]
[1643982028513,1.10499068,37653.0,37652.0,106.0]
[1643982028713,0.8,37653.0,37652.0,105.39265956]
[1643982028911,0.00676193,37654.0,37652.0,105.39265956]
[1643982029113,0.13955991,37654.0,37652.0,105.74664346]
[1643982029313,0.05,37653.0,37652.0,105.74664346]
[1643982029712,0.06675123,37655.0,37652.0,105.74664346]
[1643982029713,0.07474657,37655.0,37652.0,105.74664346]
[1643982029916,0.00672162,37655.0,37652.0,105.74664346]
[1643982030712,0.0664,37654.0,37653.0,0.21623527]
[1643982030914,0.2328,37665.0,37653.0,0.21623527]
[1643982031112,0.05,37665.0,37653.0,0.21623527]
[1643982031312,0.00632281,37665.0,37658.0,0.08882708]
[1643982031513,0.00632281,37665.0,37653.0,0.21623527]
[1643982031514,0.05009514,37663.0,37653.0,0.21623527]
[1643982031714,1.26191954,37662.0,37653.0,0.21623527]
[1643982031962,0.19922688,37660.0,37653.0,0.21623527]
[1643982032161,0.26561788,37660.0,37653.0,0.21623527]
[1643982032357,0.26291053,37660.0,37653.0,0.21623527]
[1643982032561,0.26291053,37660.0,37654.0,0.29088852]
[1643982032758,0.26191954,37664.0,37658.0,0.10405806]
[1643982032759,1.9,37663.0,37658.0,0.10405806]
[1643982032961,0.23154499,37665.0,37658.0,0.10405806]
[1643982033160,0.199173,37661.0,37659.0,0.00036576]
[1643982033358,0.25534025,37661.0,37658.0,0.09942382]
[1643982033560,0.03,37660.0,37654.0,0.29088852]
[1643982033759,0.23677612,37661.0,37654.0,0.29088852]
[1643982033962,1.2134,37670.0,37655.0,0.75]
[1643982034164,3.35273364,37671.0,37657.0,0.7]
[1643982034362,1.62764857,37671.0,37657.0,0.7]
[1643982034563,1.62764857,37671.0,37670.0,0.07548238]
[1643982034763,1.3,37670.0,37668.0,0.07647487]
[1643982034966,2.04308766,37671.0,37669.0,0.25900415]
[1643982034967,1.70170381,37671.0,37669.0,0.25900415]
[1643982035168,0.999058,37670.0,37669.0,0.25900415]
[1643982035362,0.45680024,37670.0,37669.0,0.25900415]
[1643982035609,0.45680024,37670.0,37657.0,0.832753]
[1643982035811,0.06638,37666.0,37657.0,0.832753]
[1643982036010,0.06638,37666.0,37664.0,0.0939168]
[1643982036215,1.76040857,37671.0,37664.0,0.0939168]
[1643982036414,0.5235,37672.0,37666.0,0.04990485]
[1643982036613,0.53086963,37672.0,37664.0,0.19382165]
[1643982036812,0.00736963,37672.0,37664.0,0.19382165]
[1643982037112,0.00736963,37672.0,37665.0,0.23280091]
[1643982037310,0.00736963,37672.0,37671.0,0.08386887]
[1643982037311,0.00236963,37672.0,37671.0,0.08386887]
[1643982037913,0.09816014,37675.0,37671.0,0.38401126]
[1643982037914,0.0073915,37675.0,37671.0,0.38401126]
[1643982038214,0.00092409,37673.0,37671.0,0.38401126]
[1643982039011,0.01369582,37679.0,37671.0,0.38401126]
[1643982039012,0.01,37679.0,37671.0,0.38401126]
[1643982039213,0.00092409,37674.0,37671.0,0.30014239]
[1643982039971,0.00092409,37674.0,37665.0,0.0489]
[1643982040167,0.31296557,37675.0,37665.0,0.0489]
[1643982040370,0.09119329,37672.0,37662.0,0.28509914]
[1643982040566,0.00092408,37674.0,37662.0,0.28509914]
[1643982040772,0.00092408,37674.0,37657.0,1.48649045]
[1643982040773,0.00748377,37673.0,37672.0,0.76491558]
[1643982040968,0.00748377,37673.0,37672.0,0.13191558]
[1643982040969,2.63790384,37673.0,37672.0,0.13191558]
[1643982041167,1.95748377,37673.0,37672.0,0.05181558]
[1643982041367,0.15748377,37673.0,37672.0,0.05181558]
[1643982041968,0.05748377,37673.0,37672.0,0.27848946]
[1643982042165,0.00748377,37673.0,37672.0,0.27848946]
[1643982042567,0.00292444,37673.0,37672.0,0.27848946]
[1643982043210,0.00292444,37673.0,37672.0,0.55330691]
[1643982043409,0.00749587,37673.0,37672.0,0.27848946]
[1643982043609,0.06517138,37674.0,37672.0,0.27848946]
[1643982043813,0.19915,37677.0,37672.0,0.27848946]
[1643982043814,0.14626522,37677.0,37674.0,0.35]
[1643982044017,0.00086853,37675.0,37673.0,0.38309113]
[1643982044212,0.00086853,37675.0,37673.0,0.09678109]
[1643982044811,0.06725253,37675.0,37673.0,0.09678109]
[1643982045013,0.066384,37675.0,37673.0,0.09678109]
[1643982046013,0.14626522,37677.0,37673.0,0.09678109]
[1643982046218,0.0078506,37680.0,37675.0,0.9]
[1643982046414,0.0078506,37680.0,37676.0,0.31073903]
[1643982046614,0.0078506,37680.0,37678.0,0.01959089]
[1643982046868,0.5285,37681.0,37679.0,105.39265956]
[1643982046869,0.60156356,37681.0,37679.0,105.39265956]
[1643982047064,0.60156356,37681.0,37679.0,105.49247024]
[1643982047265,0.60156356,37681.0,37679.0,105.78512951]
[1643982047663,0.59656356,37681.0,37679.0,105.78512951]
[1643982048470,0.349058,37685.0,37684.0,104.66209742]
[1643982048868,0.05565089,37686.0,37684.0,104.66209742]
[1643982049267,0.349058,37685.0,37684.0,104.66209742]
[1643982050267,2.03729369,37697.0,37696.0,101.12825451]
[1643982050470,2.38702489,37697.0,37696.0,98.75721056]
[1643982050717,2.39211353,37697.0,37696.0,98.75721056]
[1643982050923,2.84211353,37697.0,37696.0,98.35900056]
[1643982051215,2.84211353,37697.0,37696.0,97.96078477]
[1643982051216,2.64491353,37697.0,37696.0,97.96078477]
[1643982051421,2.17764353,37697.0,37696.0,97.56258977]
[1643982051617,1.72764353,37697.0,37696.0,97.56258977]
[1643982052018,2.42764353,37697.0,37696.0,97.16439477]
[1643982052218,2.47764353,37697.0,37696.0,97.16439477]
[1643982052417,1.77764353,37697.0,37696.0,97.16439477]
[1643982053824,1.77764353,37697.0,37693.0,0.08375672]
[1643982053825,0.64207531,37702.0,37700.0,93.85389598]
[1643982054021,2.41677965,37701.0,37700.0,93.45569798]
[1643982054219,2.46567965,37701.0,37700.0,93.45569798]
[1643982054463,2.53204665,37701.0,37700.0,93.45569798]
[1643982054663,0.95737965,37701.0,37700.0,92.69440783]
[1643982054865,0.397916,37701.0,37700.0,92.97294933]
[1643982055062,0.0489,37701.0,37700.0,93.06589873]
[1643982055865,0.28729249,37706.0,37705.0,88.78985655]
[1643982056068,1.28630849,37706.0,37705.0,88.78985655]
[1643982056265,0.68630849,37706.0,37705.0,88.78985655]
[1643982056463,0.63630849,37706.0,37705.0,88.78985655]
[1643982057064,0.70266049,37706.0,37705.0,88.78985655]
[1643982057265,0.54436049,37706.0,37705.0,88.78985655]
[1643982057467,0.59326049,37706.0,37705.0,88.78985655]
[1643982057764,0.62379997,37706.0,37705.0,88.78985655]
[1643982058212,0.14270194,37709.0,37705.0,88.78985655]
[1643982058213,0.17887579,37711.0,37705.0,88.78985655]
[1643982058413,0.105451,37714.0,37713.0,86.30709435]
[1643982058618,1.88790671,37714.0,37713.0,84.84691574]
[1643982058816,2.45686689,37714.0,37713.0,83.84193489]
[1643982059814,2.46666689,37714.0,37713.0,83.84193489]
[1643982060012,2.70777136,37714.0,37713.0,83.84193489]
[1643982060314,2.70777136,37714.0,37713.0,76.24650421]
[1643982060315,4.85836746,37714.0,37713.0,76.24650421]
[1643982060514,4.44280744,37714.0,37713.0,72.7249566]
[1643982060716,5.83322554,37714.0,37713.0,72.5930566]
[1643982060914,6.98648375,37714.0,37713.0,70.3851995]
[1643982061117,6.62011175,37714.0,37713.0,69.52696531]
[1643982061314,6.62011175,37714.0,37713.0,59.72429635]
[1643982061315,7.28647639,37714.0,37713.0,59.72429635]
[1643982061516,7.28647639,37714.0,37713.0,59.32608364]
[1643982061715,7.03647639,37714.0,37713.0,59.32608364]
[1643982061966,7.78872164,37714.0,37713.0,57.53188864]
[1643982062177,7.48058039,37714.0,37713.0,57.13367776]
[1643982062367,10.80357039,37714.0,37713.0,56.25727576]
[1643982062563,8.30013539,37714.0,37713.0,56.25727576]
[1643982062965,8.30013539,37714.0,37713.0,55.46081976]
[1643982063166,7.84581539,37714.0,37713.0,55.46081976]